[Event "European Women Blitz-ch 2024"]
[Site "Monaco"]
[Date "2025.01.10"]
[Round "10.8"]
[White "Sliwicka, Alicja"]
[Black "Khademalsharieh, Sarasadat"]
[Result "1-0"]
[Annotator "TA"]
[ECO "C50"]
[WhiteElo "2344"]
[BlackElo "2458"]
[PlyCount "87"]
[EventDate "2025.01.06"]
[EventType "swiss"]
[EventCountry "MNC"]
[SourceTitle "playchess.com"]
[Source "ChessBase"]
[SourceQuality "1"]
[TimeControl "180+2"]

{[%evp 16,87,20,7,15,-25,-35,-44,-40,-41,0,5,70,67,70,24,20,12,21,15,33,-56,-52,-53,-50,-123,-139,-116,-106,-129,6,7,18,-65,1050,985,1035,997,1261,1042,1824,1824,1260,1193,1162,1041,1615,1068,1077,1070,1296,1296,1291,1054,1868,1886,1806,1618,2214,1987,5911,6329,29948,2204,29978,29979,29970,29951,29987,29988,29994,29995,29995,29996]} 1. e4 {[%emt 0:00:01]} e5 {[%emt 0:00:01]} 2. Nf3 {[%emt 0:00:01]} Nc6 {[%emt 0:00:01]} 3. Bc4 {[%emt 0:00:02]} Bc5 {[%emt 0:00:01]} 4. d3 {[%emt 0:00:05]} Nf6 {[%emt 0:00:02]} 5. Bg5 {[%emt 0:00:03]} h6 {[%emt 0:00:03]} 6. Bh4 {[%emt 0:00:01]} Be7 {[%emt 0:00:11]} 7. Bg3 {[%emt 0:00:03]} d6 {[%emt 0:00:01]} 8. a4 {[%emt 0:00:04]} a6 {[%emt 0:00:03]} 9. Nc3 {[%emt 0:00:03]} O-O {[%emt 0:00:09]} 10. O-O {[%emt 0:00:04]} Bg4 $1 {[%emt 0:00:16]} 11. h3 {[%emt 0:00:02]} Bh5 {[%emt 0:00:02]} 12. Bh2 {[%emt 0:00:05]} Nd4 {[%emt 0:00:35]} (12... Qc8 $15 {was preferable.} 13. Kh1 b5) 13. g4 $11 {[%emt 0:00:29]} Bg6 {[%emt 0:00:08]} (13... Nxg4 $11 14. Nxd4 Nxh2 15. Qxh5 exd4) 14. Nxd4 $14 {[%emt 0:00:04]} exd4 {[%emt 0:00:02]} 15. Ne2 {[%emt 0:00:03]} (15. Nd5 $14) 15... d5 $11 {[%emt 0:00:16]} 16. exd5 {[%emt 0:00:07]} Nxd5 {[%emt 0:00:01]} 17. Nxd4 {[%emt 0:00:09]} Bf6 {[%emt 0:00:01]} 18. Nf5 {[%emt 0:00:31]} (18. Qf3 $14) 18... Bxf5 $15 {[%emt 0:00:15]} 19. gxf5 {[%emt 0:00:03]} Bxb2 {[%emt 0:00:02]} 20. Rb1 {[%emt 0:00:14]} (20. Bxd5 $1 $15 Qxd5 (20... Bxa1 21. Bxb7 Ra7 22. Be4 $15) 21. Rb1) 20... Nc3 $17 {[%emt 0:00:07]} 21. Qg4 {[%emt 0:00:03]} Nxb1 {[%emt 0:00:02]} 22. Rxb1 {[%emt 0:00:02]} Bf6 {[%emt 0:00:02]} ({Black should try} 22... b5 $1 $17 {[%cal Rb5c4]} 23. axb5 axb5 24. Bxb5 Bd4) 23. Rxb7 $11 {[%emt 0:00:03]} Qe8 {[%emt 0:00:05]} 24. Rb1 {[%emt 0:00:15]} (24. Rxc7 $11 Rc8 25. Qg3 (25. Bxa6 Rxc7 26. Bxc7 Qa8 $15)) 24... Qxa4 $2 {[%emt 0:00:06][%mdl 8192]} (24... Rb8 $15 25. Rxb8 Qxb8) 25. Bxf7+ $1 $18 {[%emt 0:00:14]} ({Not} 25. Bxc7 Qc6 (25... Qxc2 $2 26. Rb6 $17) 26. Bg3 a5 $17) 25... Rxf7 {[%emt 0:00:05]} 26. Qxa4 {[%emt 0:00:01]} a5 {[%emt 0:00:04]} 27. d4 {[%emt 0:00:04]} Bg5 {[%emt 0:00:09]} 28. Qc4 {[%emt 0:00:08]} Raf8 {[%emt 0:00:16]} 29. Ra1 {[%emt 0:00:05]} Bd2 {[%emt 0:00:04]} 30. f6 {[%emt 0:00:09]} Kh7 {[%emt 0:00:03]} 31. Be5 {[%emt 0:00:04]} gxf6 {[%emt 0:00:03]} 32. Bg3 {[%emt 0:00:02]} f5 {[%emt 0:00:02]} 33. c3 {[%emt 0:00:07]} Rg7 {[%emt 0:00:07]} 34. Rxa5 {[%emt 0:00:03]} Be3 {[%emt 0:00:25]} 35. Kf1 {[%emt 0:00:09]} Bg5 {[%emt 0:00:08]} 36. Qd3 {[%emt 0:00:03]} Rgf7 {[%emt 0:00:02]} 37. h4 {[%emt 0:00:02]} Bd8 {[%emt 0:00:01]} 38. h5 {[%emt 0:00:01]} Kg8 {[%emt 0:00:02]} 39. Bf4 {[%emt 0:00:02]} (39. Be5 $142 Bf6 40. Bxf6 (40. Qxf5 Bxe5 41. Qxe5 Rxf2+ 42. Ke1 Rf1+ 43. Kd2 R1f2+ 44. Kd3 R2f3+ 45. Kc4 R3f6 $18) 40... Rxf6 41. Qg3+ Kh7 42. Qxc7+ R6f7 43. Qd6 Kg8 44. Qe6 (44. Qxh6 Rf6 $18)) 39... Bg5 {[%emt 0:00:05]} 40. Bxg5 {[%emt 0:00:03]} hxg5 {[%emt 0:00:01]} 41. Qg3 {[%emt 0:00:02]} Rg7 {[%emt 0:00:04]} 42. h6 {[%emt 0:00:01]} Rg6 {[%emt 0:00:02]} 43. Qxc7 {[%emt 0:00:02]} Rxh6 {[%emt 0:00:01]} 44. Ra7 {[%emt 0:00:01]} 1-0

[Event "European Women Blitz-ch 2024"]
[Site "Monaco"]
[Date "2025.01.10"]
[Round "10.9"]
[White "Toncheva, Nadya"]
[Black "Osmak, Yuliia"]
[Result "0-1"]
[Annotator "TA"]
[ECO "B00"]
[WhiteElo "2313"]
[BlackElo "2463"]
[PlyCount "90"]
[EventDate "2025.01.06"]
[EventType "swiss"]
[EventCountry "MNC"]
[SourceTitle "playchess.com"]
[Source "ChessBase"]
[SourceQuality "1"]
[TimeControl "180+2"]

{[%evp 9,90,-8,-30,-108,-91,-88,-56,-76,-62,-82,-85,-82,-62,-65,-47,-61,-65,-66,-35,-70,60,49,21,-6,4,0,241,40,71,69,268,279,366,356,314,287,276,291,305,310,383,283,272,268,262,233,266,266,267,268,269,202,205,181,175,8,8,0,0,0,0,-126,0,0,0,0,0,0,0,0,0,0,0,-6,-3,-61,-54,-56,-39,-63,-62,-1630,-1297]} 1. e4 {[%emt 0:00:02][%cal Be2e4,Be4e5][%mdl 32]} Nc6 {[%emt 0:00:00]} 2. d4 {[%emt 0:00:01]} d5 {[%emt 0:00:01]} 3. e5 {[%emt 0:00:02]} f6 {[%emt 0:00:01]} 4. Bd3 {[%emt 0:00:12]} Nxd4 {[%emt 0:00:15]} 5. c3 {[%emt 0:00:12]} Nf5 {[%emt 0:00:05]} 6. Qf3 {[%emt 0:00:33]} (6. Nf3 $11) 6... e6 {[%emt 0:00:08]} 7. Bf4 {[%emt 0:00:10]} fxe5 {[%emt 0:00:10]} 8. Bxe5 {[%emt 0:00:01]} Nf6 {[%emt 0:00:01]} 9. Nd2 {[%emt 0:00:06]} Bd6 {[%emt 0:00:04]} 10. Qe2 {[%emt 0:00:11]} O-O {[%emt 0:00:07]} 11. Ngf3 {[%emt 0:00:02]} c5 {[%emt 0:00:28]} 12. h3 {[%emt 0:00:03]} Bxe5 {[%emt 0:00:12]} 13. Nxe5 {[%emt 0:00:02]} Qd6 {[%emt 0:00:02][%cal Of6h5]} 14. O-O-O {[%emt 0:00:09]} Bd7 {[%emt 0:00:09]} (14... b5 $15) 15. g4 $1 $14 {[%emt 0:00:06][%mdl 1024] White has compensation.} Ne7 $1 {[%emt 0:00:10]} 16. Bc2 {[%emt 0:00:20] Wards off Ba4} (16. Ndc4 $5 Qc7 $8 (16... dxc4 $2 17. Bxh7+ Kxh7 18. Rxd6 $18) 17. Nxd7 Qxd7 18. Rhe1 $11) 16... Nc6 {[%emt 0:00:05]} 17. f4 {[%emt 0:00:02] Hoping for g5.} Qe7 $2 {[%emt 0:00:12] [#]} (17... Be8 $11) 18. Ndf3 $2 {[%emt 0:00:04]} (18. g5 $1 $18 {[%cal Rg5f6]}) 18... Be8 {[%emt 0:00:07]} 19. Rhe1 {[%emt 0:00:04]} Bf7 $2 {[%emt 0:00:09]} ({Black should play} 19... Rb8 $14) 20. Nxf7 $18 {[%emt 0:00:09]} Qxf7 {[%emt 0:00:09]} 21. Ng5 $1 {[%emt 0:00:02] Against Ne4} (21. Qxe6 Qxe6 22. Rxe6 Rad8 $16) 21... Qe7 {[%emt 0:00:05]} 22. Qxe6+ {[%emt 0:00:16]} Qxe6 {[%emt 0:00:04]} 23. Nxe6 {[%emt 0:00:02]} Rf7 {[%emt 0:00:14]} 24. Nxc5 {[%emt 0:00:03]} Rd8 {[%emt 0:00:22]} 25. Ne6 {[%emt 0:00:05]} Rd6 {[%emt 0:00:04]} 26. f5 {[%emt 0:00:07]} h6 {[%emt 0:00:06]} 27. Bb3 {[%emt 0:00:06]} Na5 {[%emt 0:00:01]} 28. Nf4 {[%emt 0:00:07][%cal Rb3d5]} Nxb3+ {[%emt 0:00:01]} 29. axb3 {[%emt 0:00:41]} Rfd7 {[%emt 0:00:03]} 30. Re6 {[%emt 0:00:00]} Rxe6 {[%emt 0:00:07]} 31. fxe6 {[%emt 0:00:00][%mdl 4096] Endgame KRN-KRN. White is a pawn up.} Rd6 {[%emt 0:00:01]} 32. Rd4 $2 {[%emt 0:00:00]} ({White should play} 32. c4 $18) 32... g5 $11 {[%emt 0:00:03]} 33. Nd3 {[%emt 0:00:00]} Rxe6 {[%emt 0:00:01]} 34. Kd1 {[%emt 0:00:00]} Re3 {[%emt 0:00:02]} 35. Nc5 {[%emt 0:00:00]} (35. Nf2 $1 $11 {remains equal.}) 35... b6 {[%emt 0:00:04]} (35... Rxh3 $17 {...b6 is the strong threat.} 36. Nxb7 Rh4) 36. Rd3 {[%emt 0:00:01]} Re5 {[%emt 0:00:06]} 37. Na6 {[%emt 0:00:02]} Ne4 {[%emt 0:00:02]} 38. Kc2 {[%emt 0:00:01]} Nf2 {[%emt 0:00:04]} 39. Rf3 {[%emt 0:00:01]} Re2+ {[%emt 0:00:01]} 40. Kc1 {[%emt 0:00:05]} Ne4 {[%emt 0:00:03]} 41. Nb4 {[%emt 0:00:03]} Nd2 {[%emt 0:00:03]} 42. Rf5 {[%emt 0:00:04]} (42. Rf6 $11) 42... Nxb3+ $15 {[%emt 0:00:02]} 43. Kb1 $1 {[%emt 0:00:00]} d4 {[%emt 0:00:04]} 44. cxd4 {[%emt 0:00:02]} Nxd4 {[%emt 0:00:02]} 45. Nd5 $2 {[%emt 0:00:02][%mdl 8192]} Nxf5 {[%emt 0:00:01]} 0-1

[Event "European Women Blitz-ch 2024"]
[Site "Monaco"]
[Date "2025.01.10"]
[Round "10.10"]
[White "Papp, Petra"]
[Black "Batsiashvili, Nino"]
[Result "0-1"]
[Annotator "TA"]
[ECO "A43"]
[WhiteElo "2235"]
[BlackElo "2476"]
[PlyCount "84"]
[EventDate "2025.01.06"]
[EventType "swiss"]
[EventCountry "MNC"]
[SourceTitle "playchess.com"]
[Source "ChessBase"]
[SourceQuality "1"]
[TimeControl "180+2"]

{[%evp 9,84,41,49,37,43,28,38,-3,35,-61,-54,-62,-57,-79,-82,-84,-70,-72,-72,-80,-16,-56,-16,-72,-50,-50,-24,-24,-24,-111,-103,-158,-157,-229,-133,-265,-271,-292,-304,-353,-302,-467,-476,-481,-460,-799,-778,-800,-754,-754,-706,-1072,-745,-859,-698,-808,-802,-748,-672,-2019,-1756,-5443,-4200,-6347,-5369,-29985,-29986,-29987,-29988,-29989,-29988,-29991,-29991,-29992,-29991,-29991,-29991]} 1. d4 {[%emt 0:00:02]} Nf6 {[%emt 0:00:01]} 2. Nf3 {[%emt 0:00:01]} c5 {[%emt 0:00:00]} 3. d5 {[%emt 0:00:20]} b5 {[%emt 0:00:01][%cal Bb7b5,Bb5b4][%mdl 32]} 4. c3 {[%emt 0:00:08]} a6 {[%emt 0:00:15]} 5. Bg5 {[%emt 0:00:05]} g6 {[%emt 0:00:04]} 6. Bxf6 {[%emt 0:00:06]} exf6 {[%emt 0:00:01]} 7. a4 {[%emt 0:00:00]} b4 {[%emt 0:00:10]} 8. Nbd2 {[%emt 0:00:08]} Bg7 {[%emt 0:00:10]} 9. c4 {[%emt 0:00:04]} ({White should try} 9. cxb4 $14 cxb4 10. Nc4) 9... O-O {[%emt 0:00:03]} 10. b3 {[%emt 0:00:01]} f5 {[%emt 0:00:01]} 11. Ra2 {[%emt 0:00:18]} d6 {[%emt 0:00:04]} 12. e3 {[%emt 0:00:01]} Qf6 {[%emt 0:00:06]} 13. g3 {[%emt 0:00:06]} Nd7 {[%emt 0:00:02]} 14. Bg2 {[%emt 0:00:03]} Ne5 {[%emt 0:00:13]} ({Black should play} 14... Re8 $17 15. h4 a5) 15. O-O {[%emt 0:00:04]} Re8 {[%emt 0:00:12]} 16. a5 {[%emt 0:00:08]} (16. Nxe5 $11 Qxe5 (16... Rxe5 17. h4 $17) 17. Nf3) 16... Bd7 {[%emt 0:00:02] Black is more active.} 17. Nxe5 {[%emt 0:00:19]} Rxe5 {[%emt 0:00:01]} (17... Qxe5 18. Bf3 $17) 18. Nf3 {[%emt 0:00:04]} Re7 {[%emt 0:00:01]} 19. h4 {[%emt 0:00:01]} (19. Ne1 $11) 19... Rae8 {[%emt 0:00:02]} 20. Qd3 {[%emt 0:00:12]} (20. Nh2 $142) 20... h6 $1 $17 {[%emt 0:00:07]} 21. Bh3 {[%emt 0:00:22] [#]} (21. Re2 $17) 21... Bc8 {[%emt 0:00:15]} (21... g5 $1 $19 {[%cal Rg5g4] aiming for ...g4.} 22. hxg5 hxg5) 22. Bg2 {[%emt 0:00:05] [#]} (22. Qd1 $17 {was necessary.}) 22... g5 $1 $19 {[%emt 0:00:06]} 23. hxg5 {[%emt 0:00:02]} hxg5 {[%emt 0:00:01]} 24. Nd2 {[%emt 0:00:15]} f4 {[%emt 0:00:09] White is weak on the dark squares} 25. e4 {[%emt 0:00:11]} (25. gxf4 $142 gxf4 26. e4) 25... Qc3 {[%emt 0:00:15]} 26. Qf3 {[%emt 0:00:31]} fxg3 {[%emt 0:00:12]} 27. fxg3 {[%emt 0:00:06]} (27. Qxg3 $142 Qxg3 28. fxg3) 27... Bd4+ {[%emt 0:00:04]} 28. Kh2 {[%emt 0:00:00]} Kg7 {[%emt 0:00:01] ( -> ...Rh8+)} 29. g4 {[%emt 0:00:17]} Rh8+ {[%emt 0:00:09]} 30. Kg3 {[%emt 0:00:00]} Rh4 {[%emt 0:00:04]} 31. Qxc3 {[%emt 0:00:00]} bxc3 {[%emt 0:00:01]} 32. Nf3 {[%emt 0:00:01]} Rxg4+ {[%emt 0:00:01]} 33. Kh2 {[%emt 0:00:00]} Rexe4 {[%emt 0:00:13]} 34. Bh3 {[%emt 0:00:01] [#]} Rh4 $1 {[%emt 0:00:04]} 35. Nxh4 {[%emt 0:00:01]} (35. Nxg5 Re3) 35... Rxh4 {[%emt 0:00:01]} 36. Rf3 {[%emt 0:00:01]} g4 {[%emt 0:00:04]} 37. Rg3 {[%emt 0:00:09]} Rxh3+ {[%emt 0:00:02]} 38. Rxh3 {[%emt 0:00:00]} gxh3 {[%emt 0:00:01]} 39. Kg3 {[%emt 0:00:03]} Bf5 {[%emt 0:00:01]} 40. b4 {[%emt 0:00:03]} cxb4 {[%emt 0:00:05]} 41. Kf4 {[%emt 0:00:00]} Bg6 {[%emt 0:00:02]} 42. c5 {[%emt 0:00:03]} Bxc5 {[%emt 0:00:02]} 0-1

[Event "European Women Blitz-ch 2024"]
[Site "Monaco"]
[Date "2025.01.10"]
[Round "10.11"]
[White "Cramling Bellon, Anna"]
[Black "Shvedova, Alexandra"]
[Result "0-1"]
[Annotator "TA"]
[ECO "D48"]
[WhiteElo "2052"]
[BlackElo "2266"]
[PlyCount "118"]
[EventDate "2025.01.06"]
[EventType "swiss"]
[EventCountry "MNC"]
[SourceTitle "playchess.com"]
[Source "ChessBase"]
[SourceQuality "1"]
[TimeControl "180+2"]

{[%evp 20,117,-25,-23,-18,0,-10,0,-14,-19,-15,-5,42,42,45,-89,-81,-87,-83,-83,-75,-107,-66,-80,-74,-102,-97,-128,-78,-106,-114,-252,-95,-196,-205,-297,-117,-244,-24,-27,-24,-32,-8,-3,116,28,138,12,7,16,206,125,455,0,45,13,16,20,46,0,13,0,0,0,50,33,29,38,92,2,14,-161,5,9,92,0,13,0,0,-46,89,-29987,-29988,-29992,-29992,-29993,-29970,-29968,-1831,-29970,-29967,-29986,-29979,-29981,-29982,-29982,-29983,-29983,-29984,-29999]} 1. d4 {[%emt 0:00:02]} Nf6 {[%emt 0:00:01]} 2. c4 {[%emt 0:00:01]} e6 {[%emt 0:00:01]} 3. Nf3 {[%emt 0:00:02]} d5 {[%emt 0:00:00]} 4. Nc3 {[%emt 0:00:01]} dxc4 {[%emt 0:00:02]} 5. e3 {[%emt 0:00:05]} a6 {[%emt 0:00:01]} 6. Bxc4 {[%emt 0:00:03]} c5 {[%emt 0:00:01]} 7. O-O {[%emt 0:00:20]} b5 {[%emt 0:00:02]} 8. Bd3 {[%emt 0:00:04]} Bb7 {[%emt 0:00:03]} 9. Qe2 {[%emt 0:00:19]} Nbd7 {[%emt 0:00:20]} 10. Rd1 {[%emt 0:00:03]} Qb6 {[%emt 0:00:36]} 11. Bc2 {[%emt 0:00:33]} Be7 {[%emt 0:00:06]} 12. e4 {[%emt 0:00:03]} cxd4 {[%emt 0:00:12]} 13. Nxd4 {[%emt 0:00:04]} Qc7 {[%emt 0:00:16]} 14. a3 {[%emt 0:00:46]} O-O {[%emt 0:00:05]} 15. Be3 {[%emt 0:00:03]} Nb6 {[%emt 0:00:29]} (15... Rac8 $11) 16. Rac1 {[%emt 0:00:06]} Nc4 {[%emt 0:00:03]} 17. Bd3 {[%emt 0:00:40]} (17. Ndxb5 $14 {keeps the upper hand.} Qc8 (17... axb5 18. Nxb5 Qb8 19. Qxc4 $14) 18. e5) 17... Nxe3 $17 {[%emt 0:00:12]} 18. Qxe3 {[%emt 0:00:08]} Ng4 {[%emt 0:00:20][%csl LRe3,LRh2]} 19. Qh3 {[%emt 0:00:02]} Qf4 {[%emt 0:00:03]} 20. Nf3 {[%emt 0:00:05]} Ne5 {[%emt 0:00:05] Black is much more active.} (20... Bc5 21. Rc2 Rad8 22. Qg3 Qxg3 23. hxg3 Rd7) 21. Nxe5 {[%emt 0:00:05]} Qxe5 {[%emt 0:00:01]} 22. g3 {[%emt 0:00:04]} Bc5 {[%emt 0:00:06]} 23. Kg2 {[%emt 0:00:02]} h6 {[%emt 0:00:03]} (23... f5 $142 {[%cal Rf5e4]} 24. f4 Qf6 (24... Bxe4+ $2 25. Nxe4 Qxb2+ 26. Rc2 $18)) 24. Qg4 {[%emt 0:00:04]} f5 {[%emt 0:00:04]} 25. Qh5 {[%emt 0:00:02]} (25. Qf4 $17 Qf6 26. Nd5 exd5 27. Rxc5 fxe4 (27... Qxb2 28. exf5 d4+ 29. Be4 $11) (27... dxe4 28. Bc2 $17) 28. Qxf6 Rxf6 29. Rc7) 25... Qf6 $2 {[%emt 0:00:03]} (25... Bxe4+ $2 26. Bxe4 Rad8 27. Bb7 $18) (25... Bxf2 $1 $19 {...Be3 is the strong threat.} 26. Rc2 Bc5 (26... Bxe4+ $2 27. Bxe4 Rac8 28. Rxf2 $18)) 26. Rd2 {[%emt 0:00:04]} (26. Bb1 $17) 26... Rad8 $19 {[%emt 0:00:05]} 27. Rcd1 {[%emt 0:00:01]} (27. Qe2 {is the only way for White.}) 27... Bb6 $2 {[%emt 0:00:05] A strong pair of Bishops.} (27... Bxa3 $19 {is more deadly.} 28. Nd5 exd5) 28. f3 {[%emt 0:00:02]} (28. Bb1 $17) 28... fxe4 $2 {[%emt 0:00:04]} (28... Be3 $19 29. Re2 fxe4 30. Rxe3 exd3 (30... Rxd3 31. Rexd3 exd3 32. Rxd3 $17) 31. Rdxd3 Rd4) 29. Bxe4 {[%emt 0:00:01]} (29. Nxe4 {seems wilder.} Qf5 30. Qxf5 Rxf5 31. Bb1) 29... Rxd2+ {[%emt 0:00:05]} 30. Rxd2 {[%emt 0:00:01]} Bxe4 {[%emt 0:00:01]} 31. Nxe4 {[%emt 0:00:01]} Qe7 {[%emt 0:00:05]} (31... Qf5 $11 32. Qg4 Qxg4 33. fxg4 Rc8) 32. Qe5 {[%emt 0:00:04]} (32. Rd6 $16 Qc7 33. Qg6 (33. Rxe6 Qc2+ 34. Kh3 Bg1 $14)) 32... Bc7 {[%emt 0:00:04] [#]} (32... Qf7 $11 33. Qc3 e5) 33. Qd4 {[%emt 0:00:03]} (33. Qc3 $1 $16) 33... Rd8 $11 {[%emt 0:00:02]} 34. Qc3 {[%emt 0:00:02]} Rf8 $2 {[%emt 0:00:04]} (34... Rxd2+ $11 35. Qxd2 a5) 35. Nc5 {[%emt 0:00:02][%cal Od2d7] Hoping for Rd7!.} Bb6 $2 {[%emt 0:00:03][%mdl 8192]} (35... Rd8 $16 36. Rxd8+ (36. Nxa6 Rxd2+ 37. Qxd2 Bb6 $16) 36... Bxd8) 36. Ne4 $2 {[%emt 0:00:02]} (36. Nxa6 Rd8 37. Qc2 Rxd2+ 38. Qxd2 Kf7 $11) ({White must play} 36. Nd7 $18) 36... e5 {[%emt 0:00:04]} 37. Qc6 {[%emt 0:00:02]} Bd4 {[%emt 0:00:03]} 38. Qd5+ {[%emt 0:00:01]} Kh8 {[%emt 0:00:01]} (38... Qf7 39. Qxf7+ Rxf7 40. Rc2 b4) 39. Nd6 {[%emt 0:00:02]} (39. Rc2 $14 {was preferable.}) 39... Qf6 {[%emt 0:00:05]} 40. Nb7 {[%emt 0:00:03]} Kh7 {[%emt 0:00:05]} (40... Qg5 $5 41. Rc2 $8 Qe3 $17) 41. Qe4+ {[%emt 0:00:01]} g6 {[%emt 0:00:01]} (41... Qg6 $11) 42. Rc2 {[%emt 0:00:01][%cal Ob7d6]} Rf7 {[%emt 0:00:04]} 43. Na5 {[%emt 0:00:01]} Kg7 {[%emt 0:00:05]} (43... Qf5 $14) 44. Rc6 {[%emt 0:00:09]} (44. Nc6 $16) 44... Qg5 {[%emt 0:00:03]} (44... Qf5 {simplifies} 45. Qxf5 Rxf5 46. Nb3 Bxb2 47. Rxa6 Rf6) 45. Qe2 $2 {[%emt 0:00:00]} (45. h4 $11 Qf5 (45... Qd2+ 46. Kh3 $16) 46. Qxf5 (46. Rxa6 Qxe4 47. fxe4 Rf2+ 48. Kh3 Rxb2 $11) 46... gxf5 47. Rxa6) 45... Qf5 $2 {[%emt 0:00:01]} (45... e4 $1 $19 {[%cal Re4f3]} 46. Qxe4 Qd2+ 47. Kh3 Bf6 48. Rxa6 Qd1) 46. Nb3 {[%emt 0:00:00][%cal Og3g4]} Rd7 {[%emt 0:00:05]} (46... Bxb2 47. g4 Qb1 48. Nd2 $16) (46... Rf6 $1 $11 {remains equal.} 47. Rc7+ Rf7) 47. Nxd4 {[%emt 0:00:00]} ({Much worse is} 47. Rxa6 Rc7 $14) (47. Nd2 $16) 47... exd4 {[%emt 0:00:01]} 48. Rxa6 $16 {[%emt 0:00:01][%mdl 4096] Endgame KQR-KQR. White is a pawn up.} d3 {[%emt 0:00:01]} 49. Qd2 {[%emt 0:00:02]} (49. Qe8 $11 Qf7 50. Qe5+ Kh7 51. Rd6 (51. Qxb5 $2 {perishes.} d2 $19) (51. Ra8 $2 Qg7 $19)) 49... Re7 {[%emt 0:00:00]} (49... Qd5 $1 $15) 50. Kf1 $2 {[%emt 0:00:05][%mdl 8192]} (50. Qc3+ $16 Kh7 51. g4 Re2+ 52. Kg1 (52. Kg3 Qd7 $14)) 50... Qxf3+ {[%emt 0:00:02]} 51. Qf2 {[%emt 0:00:02]} Qh1+ {[%emt 0:00:03]} 52. Qg1 {[%emt 0:00:01]} Re1+ {[%emt 0:00:01]} 53. Kxe1 {[%emt 0:00:01]} Qxg1+ {[%emt 0:00:01] KQ-KR} 54. Kd2 {[%emt 0:00:02]} Qd4 {[%emt 0:00:01]} 55. Re6 {[%emt 0:00:03]} Qc4 {[%emt 0:00:02]} 56. Re7+ {[%emt 0:00:02]} Kf6 {[%emt 0:00:02]} 57. Rd7 {[%emt 0:00:03]} Qc2+ {[%emt 0:00:01]} 58. Ke3 {[%emt 0:00:01]} Qe2+ {[%emt 0:00:01]} 59. Kf4 {[%emt 0:00:02]} g5# {[%emt 0:00:05]} 0-1

[Event "European Women Blitz-ch 2024"]
[Site "Monaco"]
[Date "2025.01.10"]
[Round "10.12"]
[White "Piddubna, Bozhena"]
[Black "Zhukova, Natalia"]
[Result "0-1"]
[Annotator "TA"]
[ECO "D30"]
[WhiteElo "2152"]
[BlackElo "2306"]
[PlyCount "49"]
[EventDate "2025.01.06"]
[EventType "swiss"]
[EventCountry "MNC"]
[SourceTitle "playchess.com"]
[Source "ChessBase"]
[SourceQuality "1"]
[TimeControl "180+2"]

{[%evp 16,49,50,47,27,21,17,15,21,21,27,8,21,22,17,0,0,-72,0,0,0,12,4,0,25,29,37,0,0,-292,-311,-297,-304,-302,-297,-29998]} 1. d4 {[%emt 0:00:01]} Nf6 {[%emt 0:00:01]} 2. c4 {[%emt 0:00:00]} e6 {[%emt 0:00:01]} 3. Nf3 {[%emt 0:00:02]} d5 {[%emt 0:00:02]} 4. g3 {[%emt 0:00:01]} c5 {[%emt 0:00:09]} 5. cxd5 {[%emt 0:00:11]} exd5 {[%emt 0:00:01]} 6. Bg2 {[%emt 0:00:02]} Nc6 {[%emt 0:00:02]} 7. O-O {[%emt 0:00:02]} Be7 {[%emt 0:00:01]} 8. dxc5 {[%emt 0:00:02]} Bxc5 {[%emt 0:00:01]} 9. a3 {[%emt 0:00:01]} Ne4 {[%emt 0:00:10]} 10. b4 {[%emt 0:00:11]} Be7 {[%emt 0:00:01]} 11. Bb2 {[%emt 0:00:03]} Bf6 {[%emt 0:00:15]} 12. Bxf6 {[%emt 0:00:47]} Qxf6 {[%emt 0:00:01]} 13. Ra2 {[%emt 0:00:01]} Be6 {[%emt 0:00:03]} 14. Rc2 {[%emt 0:00:10]} O-O {[%emt 0:00:11]} 15. e3 {[%emt 0:00:25]} Rac8 {[%emt 0:00:36]} 16. Qe2 {[%emt 0:00:30] [#]} (16. b5 $11 Ne5 17. Nd4) 16... Rfe8 {[%emt 0:00:24] Black has more active pieces.} ({Better is} 16... Bg4 $1 $17 {White must now prevent ...Ne5.} 17. h3 Nd4 18. exd4 Bxf3 19. Bxf3 Rxc2 (19... Qxd4 $2 20. Rd1 $18) 20. Qxc2 Qxf3) 17. Rfc1 $11 {[%emt 0:00:23]} a6 {[%emt 0:00:01]} 18. b5 {[%emt 0:00:07]} axb5 {[%emt 0:00:05]} 19. Qxb5 {[%emt 0:00:01]} Bg4 {[%emt 0:00:20]} 20. Nbd2 {[%emt 0:00:10]} Bf5 {[%emt 0:00:43]} 21. Nxe4 {[%emt 0:00:25]} ({Much weaker is} 21. Qxb7 Nd6 $17) 21... Bxe4 {[%emt 0:00:01]} 22. Rd2 $2 {[%emt 0:00:04][%mdl 8192]} (22. Rc3 $11 {and White has nothing to worry.}) 22... Bxf3 $19 {[%emt 0:00:01]} 23. Bxf3 {[%emt 0:00:04]} Qxf3 {[%emt 0:00:01]} 24. Qxb7 {[%emt 0:00:07] [#]} Ne7 $1 {[%emt 0:00:23]} 25. Qd7 $2 {[%emt 0:00:02]} (25. Qb1 $19) 0-1